fUST/lending_fUST_20250225
["ID","MTS","AMOUNT","RATE_DAILY","PERIOD"]
[354408134,1740474655289,-175.0,0.0060274,120]
[354408135,1740474655298,-175.0,0.0060274,120]
[354408136,1740474655307,-175.0,0.0060274,120]
[354408137,1740474655318,-175.0,0.0060274,120]
[354408138,1740474655328,-175.0,0.0060274,120]
[354408139,1740474655339,-175.0,0.0060274,120]
[354408140,1740474655348,-175.0,0.0060274,120]
[354408141,1740474655358,-175.0,0.0060274,120]
[354408142,1740474655368,-175.0,0.0060274,120]
[354408143,1740474655378,-175.0,0.0060274,120]
[354408144,1740474655391,-175.0,0.0060274,120]
[354408145,1740474655401,-175.0,0.0060274,120]
[354408146,1740474655411,-175.0,0.0060274,120]
[354408147,1740474655421,-175.0,0.0060274,120]
[354408148,1740474655431,-175.0,0.0060274,120]
[354408149,1740474655440,-175.0,0.0060274,120]
[354408150,1740474655450,-175.0,0.0060274,120]
[354408151,1740474655460,-175.0,0.0060274,120]
[354408152,1740474655470,-175.0,0.0060274,120]
[354408153,1740474655480,-175.0,0.0060274,120]
[354408154,1740474655490,-175.0,0.0060274,120]
[354408155,1740474655506,-175.0,0.0060274,120]
[354408156,1740474655516,-175.0,0.0060274,120]
[354408157,1740474655525,-175.0,0.0060274,120]
[354408158,1740474655535,-175.0,0.0060274,120]
[354408159,1740474655544,-175.0,0.0060274,120]
[354408160,1740474655554,-175.0,0.0060274,120]
[354408161,1740474655563,-175.0,0.0060274,120]
[354408162,1740474655572,-175.0,0.0060274,120]
[354408163,1740474655582,-641.13,0.00603,120]
[354408164,1740474655591,-500.0,0.0061,30]
[354408165,1740474655601,-500.0,0.0062,30]
[354408166,1740474655610,-37016.0,0.00628,120]
[354408167,1740474655620,-6405.0,0.00628,120]
[354408168,1740474655630,-500.0,0.0063,30]
[354408169,1740474655640,-500.0,0.0064,30]
[354408170,1740474655649,-500.0,0.0065,120]
[354408171,1740474655659,-1000.0,0.0065,120]
[354408172,1740474655668,-503.47,0.00653,30]
[354408173,1740474655678,-10000.0,0.00654016,120]
[354408174,1740474655687,-2210.36,0.00657534,120]
[354408175,1740474655696,-2210.36,0.00657534,120]
[354408176,1740474655705,-2210.36,0.00657534,120]
[354408177,1740474655715,-2210.36,0.00657534,120]
[354408178,1740474655724,-2210.36,0.00657534,120]
[354408179,1740474655734,-2210.36,0.00657534,120]
[354408180,1740474655745,-2210.36,0.00657534,120]
[354408181,1740474655754,-2210.36,0.00657534,120]
[354408182,1740474655764,-2210.36,0.00657534,120]
[354408183,1740474655773,-2210.36,0.00657534,120]
[354408184,1740474655783,-2210.36,0.00657534,120]
[354408185,1740474655792,-2210.36,0.00657534,120]
[354408186,1740474655802,-2210.36,0.00657534,120]
[354408187,1740474655812,-2210.36,0.00657534,120]
[354408188,1740474655822,-2210.36,0.00657534,120]
[354408189,1740474655831,-2210.36,0.00657534,120]
[354408190,1740474655841,-2210.36,0.00657534,120]
[354408191,1740474655851,-2210.36,0.00657534,120]
[354408192,1740474655860,-2210.36,0.00657534,120]
[354408193,1740474655870,-2210.36,0.00657534,120]
[354408194,1740474655880,-2210.36,0.00657534,120]
[354408195,1740474655890,-2210.36,0.00657534,120]
[354408196,1740474655899,-2210.56781249,0.00657534,120]
[354408197,1740474655909,-827.73,0.00658,60]
[354408198,1740474655919,-500.0,0.00683,30]
[354408199,1740474655929,-1774.38,0.00683,60]
[354408200,1740474655938,-2700.0,0.0069,120]
[354408201,1740474655948,-18146.10858272,0.0069,120]
[354408202,1740474655957,-951.45,0.0069,120]
[354408203,1740474655967,-68490.36697777,0.00696797,120]
[354408204,1740474655976,-61399.64900534,0.006988,120]
[354408205,1740474655986,-33245.35,0.00699,120]
[354408206,1740474655998,-50000.0,0.007,70]
[354408207,1740474656009,-500.0,0.007,120]
[354408208,1740474656019,-200.0,0.007,120]
[354408209,1740474656031,-2000.0,0.007,120]
[354408210,1740474656041,-500.0,0.0071,30]
[354408211,1740474656051,-2000.0,0.0071,120]
[354408212,1740474656061,-500.0,0.0072,30]
[354408213,1740474656070,-2000.0,0.0072,120]
[354408214,1740474656080,-641.13,0.0072,120]
[354408215,1740474656090,-2734.752985,0.007286,120]
[354408216,1740474656101,-500.0,0.0073,30]
[354408217,1740474656111,-9981.23653794,0.0073876,120]
[354408218,1740474656120,-500.0,0.0074,120]
[354408219,1740474656130,-568.4369745,0.0074747,120]
[354408220,1740474656140,-750.0,0.0074747,120]
[354408221,1740474656150,-9561.785917,0.0074876,120]
[354408222,1740474656160,-256.76668787,0.00748878,120]
[354408225,1740474764558,2000.0,0.00044275,30]
[354408226,1740474764859,2000.0,0.00044275,30]
[354408227,1740474765157,848.0,0.00044275,30]
[354408228,1740474844689,287.3043531,0.00061116,2]
[354408229,1740474884112,355.2534587,0.0005313,30]
[354408233,1740475129654,-516.28698546,0.00067843,120]
[354408234,1740475129679,-500.0,0.00067943,120]
[354408235,1740475129703,-631.55,0.00067943,120]
[354408236,1740475129727,-500.0,0.00067943,120]
[354408237,1740475129757,-505.16043065,0.00067943,120]
[354408238,1740475129781,-500.0,0.00067943,120]
[354408239,1740475129807,-500.0,0.00067943,120]
[354408240,1740475129831,-514.88140452,0.00067943,120]
[354408241,1740475129855,-500.0,0.00067943,120]
[354408242,1740475129879,-500.0,0.00067943,120]
[354408243,1740475129906,-500.0,0.00067943,120]
[354408244,1740475129931,-1000.0,0.00067943,20]
[354408245,1740475129956,-500.0,0.00067943,120]
[354408246,1740475129981,-500.0,0.00067943,120]
[354408247,1740475130006,-500.0,0.00067943,120]
[354408248,1740475130031,-500.0,0.00068217,120]
[354408249,1740475130056,-631.55,0.00068217,120]
[354408250,1740475130082,-500.0,0.00068217,120]
[354408251,1740475130107,-514.35,0.00068217,120]
[354408252,1740475130131,-500.0,0.00068217,120]
[354408253,1740475130160,-500.0,0.00068217,120]
[354408254,1740475130188,-1000.0,0.00068217,20]
[354408255,1740475130212,-500.0,0.00068217,120]
[354408256,1740475130238,-500.0,0.00068217,120]
[354408257,1740475130264,-500.0,0.00068217,120]
[354408258,1740475130289,-500.0,0.00068491,120]
[354408259,1740475130314,-631.55,0.00068491,120]
[354408260,1740475130339,-500.0,0.00068491,120]
[354408261,1740475130364,-500.0,0.00068491,120]
[354408262,1740475130390,-721.24401125,0.00068491,20]
[354408263,1740475130416,-500.0,0.00068491,120]
[354408264,1740475130440,-500.0,0.00068491,120]
[354408265,1740475130465,-500.54207488,0.00068492,120]
[354408266,1740475130489,-500.0,0.00068765,120]
[354408267,1740475130515,-631.55,0.00068765,120]
[354408268,1740475130539,-427.06,0.00068765,120]
[354408269,1740475130564,-500.0,0.00068765,120]
[354408270,1740475130590,-500.0,0.00068899,120]
[354408271,1740475130616,-500.0,0.00068899,120]
[354408272,1740475130645,-500.0,0.00068899,120]
[354408273,1740475130673,-500.0,0.00068899,120]
[354408274,1740475130699,-500.0,0.00068899,120]
[354408275,1740475130726,-931.63,0.00068899,120]
[354408276,1740475130750,-1342.64509324,0.000689,17]
[354408277,1740475134637,-1948.96504534,0.000689,17]
[354408278,1740475134662,-500.0,0.00069039,120]
[354408279,1740475134687,-631.55,0.00069039,120]
[354408280,1740475134711,-500.0,0.00069039,120]
[354408281,1740475134736,-500.0,0.00069173,120]
[354408282,1740475134761,-500.0,0.00069173,120]
[354408283,1740475134788,-500.0,0.00069173,120]
[354408285,1740475134814,-931.63,0.00069173,120]
[354408286,1740475134838,-500.0,0.00069313,120]
[354408287,1740475134864,-631.55,0.00069313,120]
[354408288,1740475134892,-500.0,0.00069313,120]
[354408289,1740475134919,-500.0,0.00069447,120]
[354408290,1740475134945,-500.0,0.00069447,120]
[354408291,1740475134971,-500.0,0.00069447,120]
[354408292,1740475134999,-931.63,0.00069447,120]
[354408293,1740475135023,-500.0,0.00069447,120]
[354408294,1740475135048,-168.77576977,0.00069486,28]
[354408295,1740475135072,-500.0,0.00069586,120]
[354408296,1740475135097,-521.66,0.00069586,120]
[354408297,1740475135122,-984.11,0.00069586,120]
[354408298,1740475135147,-500.0,0.00069586,120]
[354408299,1740475135179,-500.0,0.00069586,120]
[354408300,1740475135210,-500.0,0.00069586,120]
[354408301,1740475135236,-500.0,0.00069586,120]
[354408302,1740475135261,-500.0,0.00069586,120]
[354408303,1740475135288,-500.0,0.00069586,120]
[354408304,1740475135314,-676.44,0.00069586,120]
[354408305,1740475135338,-500.0,0.00069586,120]
[354408306,1740475135363,-505.67,0.00069586,120]
[354408307,1740475135388,-500.0,0.00069586,120]
[354408308,1740475135416,-500.0,0.00069586,120]
[354408309,1740475135441,-500.0,0.00069586,120]
[354408310,1740475135468,-500.0,0.00069586,120]
[354408311,1740475135494,-500.0,0.00069586,120]
[354408312,1740475135520,-500.0,0.00069587,120]
[354408313,1740475135544,-631.55,0.00069587,120]
[354408314,1740475135569,-500.0,0.00069721,120]
[354408315,1740475135595,-500.0,0.00069721,120]
[354408316,1740475135620,-500.0,0.00069721,120]
[354408317,1740475135646,-931.63,0.00069721,120]
[354408318,1740475135674,-547.31634246,0.0006986,120]
[354408319,1740475135706,-957.52284243,0.0006986,120]
[354408320,1740475269583,4596.3569714,0.00059165,2]
[354408322,1740475363668,1988.0,0.00042532,30]
[354408323,1740475411524,-413.02958836,0.00068664,120]
[354408324,1740475411555,-500.0,0.00068764,120]
[354408325,1740475411586,-500.0,0.00068764,120]
[354408326,1740475411623,-500.0,0.00068764,120]
[354408327,1740475411658,-500.0,0.00068764,120]
[354408328,1740475411691,-500.0,0.00068764,120]
[354408329,1740475411731,-648.26,0.00068764,120]
[354408330,1740475411775,-500.0,0.00068764,120]
[354408331,1740475411811,-500.0,0.00068764,120]
[354408332,1740475411846,-500.0,0.00068764,120]
[354408333,1740475411880,-500.0,0.00068764,120]
[354408334,1740475411916,-500.0,0.00068764,120]
[354408335,1740475411948,-500.0,0.00068764,120]
[354408336,1740475411984,-500.0,0.00068764,120]
[354408337,1740475412017,-500.0,0.00068764,120]
[354408338,1740475412048,-582.62,0.00068764,3]
[354408339,1740475412082,-500.0,0.00068899,120]
[354408340,1740475412115,-500.0,0.00068899,120]
[354408341,1740475412151,-500.0,0.00068899,120]
[354408342,1740475412188,-1846.87,0.00068899,120]
[354408343,1740475412236,-500.0,0.00068899,120]
[354408344,1740475412275,-500.0,0.00068899,120]
[354408345,1740475412315,-1263.6,0.00068899,120]
[354408346,1740475412357,-158.27,0.0006899,10]
[354408347,1740475412401,-791.38,0.0006899,10]
[354408348,1740475412440,-10295.97041164,0.00069,120]
[354408349,1740475413245,-25000.0,0.00069,120]
[354408350,1740475414243,-25000.0,0.00069,120]
[354408351,1740475415009,-25000.0,0.00069,120]
[354408352,1740475415968,-25000.0,0.00069,120]
[354408353,1740475416932,-500.0,0.00068764,120]
[354408354,1740475416962,-500.0,0.00068764,120]
[354408355,1740475416993,-24000.0,0.00069,120]
[354408356,1740475417954,-25000.0,0.00069,120]
[354408357,1740475418979,-25000.0,0.00069,120]
[354408358,1740475420088,-500.0,0.00068899,120]
[354408359,1740475420115,-24500.0,0.00069,120]
[354408360,1740475421085,-25000.0,0.00069,120]
[354408361,1740475431282,-500.0,0.00068764,120]
[354408362,1740475431311,-2697.02958836,0.00069,120]
[354408363,1740475431339,-500.0,0.00069038,120]
[354408364,1740475431368,-500.0,0.00069038,120]
[354408365,1740475431395,-500.0,0.00069038,120]
[354408366,1740475431425,-500.0,0.00069038,120]
[354408367,1740475431451,-503.36313524,0.00069038,120]
[354408368,1740475431479,-648.26,0.00069038,120]
[354408369,1740475431506,-500.0,0.00069038,120]
[354408370,1740475431533,-500.0,0.00069038,120]
[354408371,1740475431560,-500.0,0.00069038,120]
[354408372,1740475431587,-500.0,0.00069038,120]
[354408373,1740475431614,-500.0,0.00069038,120]
[354408374,1740475431640,-500.0,0.00069038,120]
[354408375,1740475431668,-500.0,0.00069038,120]
[354408376,1740475431697,-582.62,0.00069038,3]
[354408377,1740475431723,-500.0,0.00069038,120]
[354408378,1740475431748,-500.0,0.00069038,120]
[354408379,1740475431775,-500.0,0.00069038,120]
[354408380,1740475431801,-13068.7272764,0.000691,30]
[354408381,1740475432194,-5681.6127236,0.000691,30]
[354408382,1740475432222,-500.0,0.00069173,120]
[354408383,1740475432247,-500.0,0.00069173,120]
[354408384,1740475432280,-1846.87,0.00069173,120]
[354408385,1740475432307,-500.0,0.00069173,120]
[354408386,1740475432334,-500.0,0.00069173,120]
[354408387,1740475432364,-1263.6,0.00069173,120]
[354408388,1740475432389,-500.0,0.00069173,120]
[354408389,1740475432417,-500.0,0.00069312,120]
[354408390,1740475432443,-500.0,0.00069312,120]
[354408391,1740475432468,-500.0,0.00069312,120]
[354408392,1740475432495,-500.0,0.00069312,120]
[354408393,1740475432523,-648.26,0.00069312,120]
[354408394,1740475432646,-500.0,0.00069312,120]
[354408395,1740475432677,-500.0,0.00069312,120]
[354408396,1740475432705,-500.0,0.00069312,120]
[354408397,1740475432732,-500.0,0.00069312,120]
[354408398,1740475432759,-500.0,0.00069312,120]
[354408399,1740475432785,-500.0,0.00069312,120]
[354408400,1740475432811,-500.0,0.00069312,120]
[354408401,1740475432838,-582.62,0.00069312,3]
[354408402,1740475432863,-500.0,0.00069312,120]
[354408403,1740475432889,-500.0,0.00069312,120]
[354408404,1740475432918,-500.0,0.00069312,120]
[354408405,1740475432943,-500.0,0.00069447,120]
[354408406,1740475432968,-500.0,0.00069447,120]
[354408407,1740475432995,-1846.87,0.00069447,120]
[354408408,1740475433022,-500.0,0.00069447,120]
[354408409,1740475433048,-500.0,0.00069447,120]
[354408410,1740475433074,-1263.6,0.00069447,120]
[354408411,1740475433101,-366.5672764,0.00069447,120]
[354408412,1740475433138,-133.4327236,0.00069447,120]
[354408413,1740475433167,-500.0,0.00069586,120]
[354408414,1740475433197,-500.0,0.00069586,120]
[354408415,1740475433224,-503.846676,0.00069586,120]
[354408416,1740475433249,-500.0,0.00069586,120]
[354408417,1740475433282,-500.0,0.00069586,120]
[354408418,1740475433309,-500.0,0.00069586,120]
[354408419,1740475433335,-500.0,0.00069586,120]
[354408420,1740475433364,-500.0,0.00069586,120]
[354408421,1740475433391,-500.0,0.00069586,120]
[354408422,1740475433417,-501.65499714,0.00069586,120]
[354408423,1740475433442,-250.0,0.00069586,120]
[354408424,1740475433467,-500.0,0.00069586,120]
[354408425,1740475433493,-500.0,0.00069586,120]
[354408426,1740475433518,-500.0,0.00069586,120]
[354408427,1740475433543,-500.0,0.00069586,120]
[354408428,1740475433571,-500.0,0.00069586,120]
[354408429,1740475433596,-500.0,0.00069586,120]
[354408430,1740475433621,-500.0,0.00069586,120]
[354408431,1740475433646,-505.67643483,0.00069586,120]
[354408432,1740475433672,-509.48105309,0.00069586,120]
[354408433,1740475433700,-503.79105076,0.00069586,120]
[354408434,1740475433725,-500.0,0.00069586,120]
[354408435,1740475433751,-500.0,0.00069586,120]
[354408436,1740475433778,-500.0,0.00069586,120]
[354408437,1740475433805,-500.0,0.00069586,120]
[354408438,1740475433830,-511.21917808,0.00069586,120]
[354408439,1740475433856,-502.49019953,0.00069586,120]
[354408440,1740475433882,-508.87527991,0.00069586,120]
[354408441,1740475433908,-500.0,0.00069586,120]
[354408442,1740475433933,-500.0,0.00069586,120]
[354408443,1740475433957,-501.43120417,0.00069586,120]
[354408444,1740475433983,-648.26,0.00069586,120]
[354408445,1740475434009,-500.0,0.00069586,120]
[354408446,1740475434036,-502.00897485,0.00069586,120]
[354408447,1740475434061,-627.41118416,0.00069586,120]
[354408448,1740475434090,-6050.45,0.00069586,7]
[354408449,1740475434116,-506.30303285,0.00069586,120]
[354408450,1740475434142,-500.0,0.00069586,120]
[354408451,1740475434169,-233.66801103,0.00069586,120]
[354408452,1740475434218,-266.33198897,0.00069586,120]
[354408453,1740475434244,-247.49734324,0.00069586,120]
[354408454,1740475434275,-500.0,0.00069586,120]
[354408455,1740475434303,-500.0,0.00069586,120]
[354408456,1740475434330,-500.0,0.00069586,120]
[354408457,1740475434356,-345.05095398,0.00069586,120]
[354408458,1740475434383,-500.0,0.00069586,120]
[354408459,1740475434409,-500.0,0.00069586,120]
[354408460,1740475434437,-500.0,0.00069586,120]
[354408461,1740475434463,-502.60213939,0.00069586,120]
[354408462,1740475434489,-500.0,0.00069586,120]
[354408463,1740475434514,-500.0,0.00069586,120]
[354408464,1740475434539,-500.0,0.00069586,120]
[354408465,1740475434565,-500.0,0.00069586,120]
[354408466,1740475434591,-500.0,0.00069586,120]
[354408467,1740475434617,-501.54687498,0.00069586,120]
[354408468,1740475434643,-501.03479758,0.00069586,120]
[354408469,1740475434671,-500.0,0.00069586,120]
[354408470,1740475434698,-500.0,0.00069586,120]
[354408471,1740475434724,-500.0,0.00069586,120]
[354408472,1740475434751,-500.0,0.00069586,120]
[354408473,1740475434778,-500.0,0.00069586,120]
[354408474,1740475434804,-514.04511666,0.00069586,120]
[354408475,1740475434831,-500.0,0.00069586,120]
[354408476,1740475434857,-500.0,0.00069586,120]
[354408477,1740475434883,-500.0,0.00069586,120]
[354408478,1740475434910,-582.62,0.00069586,3]
[354408479,1740475434939,-500.0,0.00069586,120]
[354408480,1740475434967,-500.0,0.00069586,120]
[354408481,1740475434995,-507.81085157,0.00069586,120]
[354408482,1740475435023,-500.0,0.00069586,120]
[354408483,1740475435051,-500.0,0.00069586,120]
[354408484,1740475435078,-500.0,0.00069586,120]
[354408485,1740475435104,-500.74471077,0.00069586,120]
[354408486,1740475435132,-500.0,0.00069586,120]
[354408487,1740475435159,-500.0,0.00069586,120]
[354408488,1740475435305,-500.0,0.00069586,120]
[354408489,1740475435333,-500.0,0.00069586,120]
[354408490,1740475435359,-501.63937723,0.00069586,120]
[354408491,1740475435387,-500.0,0.00069721,120]
[354408492,1740475435414,-500.0,0.00069721,120]
[354408493,1740475435444,-1846.87,0.00069721,120]
[354408494,1740475435472,-500.0,0.00069721,120]
[354408495,1740475435499,-500.0,0.00069721,120]
[354408496,1740475435528,-1263.6,0.00069721,120]
[354408497,1740475435555,-500.0,0.00069721,120]
[354408498,1740475435581,-363.98520871,0.0006985,6]
[354408499,1740475435608,-54.62063692,0.0006985,10]
[354408500,1740475435657,-500.0,0.00069586,120]
[354408501,1740475435687,-363.21936308,0.0006985,10]
[354408502,1740475435715,-305.12475772,0.00069859,120]
[354408503,1740475435741,-348.36899734,0.00069859,2]
[354408504,1740475435768,-500.0,0.00069859,120]
[354408505,1740475435796,-500.0,0.00069859,120]
[354408506,1740475435823,-500.0,0.00069859,120]
[354408507,1740475435850,-600.0,0.00069859,120]
[354408508,1740475435876,-500.0,0.00069859,120]
[354408509,1740475435903,-500.0,0.00069859,120]
[354408510,1740475435933,-500.0,0.00069859,120]
[354408511,1740475435960,-282.0349,0.00069859,120]
[354408512,1740475435987,-500.0,0.00069859,120]
[354408513,1740475436018,-776.36,0.00069859,120]
[354408514,1740475436045,-500.0,0.00069859,120]
[354408515,1740475436072,-500.0,0.00069859,120]
[354408516,1740475436101,-500.0,0.00069859,120]
[354408517,1740475436130,-500.0,0.00069859,120]
[354408518,1740475436158,-500.0,0.00069859,120]
[354408519,1740475436191,-500.0,0.00069859,120]
[354408520,1740475436221,-500.0,0.00069859,120]
[354408521,1740475436248,-26.58715757,0.0006986,120]
[354408522,1740475436279,-500.0,0.0006986,120]
[354408523,1740475436307,-500.0,0.0006986,120]
[354408524,1740475436335,-500.0,0.0006986,120]
[354408525,1740475436365,-500.0,0.0006986,120]
[354408526,1740475436393,-500.0,0.0006986,120]
[354408527,1740475436421,-500.0,0.0006986,120]
[354408528,1740475436448,-500.0,0.0006986,120]
[354408529,1740475436475,-500.0,0.0006986,120]
[354408530,1740475436501,-250.0,0.0006986,120]
[354408531,1740475436527,-512.34563179,0.0006986,120]
[354408532,1740475436554,-500.0,0.0006986,120]
[354408533,1740475436582,-500.0,0.0006986,120]
[354408534,1740475436609,-500.0,0.0006986,120]
[354408535,1740475436637,-500.0,0.0006986,120]
[354408536,1740475436664,-500.0,0.0006986,120]
[354408537,1740475436692,-500.0,0.0006986,120]
[354408538,1740475436722,-500.0,0.0006986,120]
[354408539,1740475436750,-648.26,0.0006986,120]
[354408540,1740475436778,-500.0,0.0006986,120]
[354408541,1740475436806,-5387.6991925,0.0006986,7]
[354408542,1740475436862,-500.0,0.00068899,120]
[354408543,1740475436892,-662.7508075,0.0006986,7]
[354408544,1740475436921,-500.0,0.0006986,120]
[354408545,1740475436953,-500.0,0.0006986,120]
[354408546,1740475436981,-500.0,0.0006986,120]
[354408547,1740475437009,-500.0,0.0006986,120]
[354408548,1740475437037,-500.0,0.0006986,120]
[354408549,1740475437064,-500.0,0.0006986,120]
[354408550,1740475437091,-510.83285161,0.0006986,120]
[354408551,1740475437120,-500.0,0.0006986,120]
[354408552,1740475437150,-500.0,0.0006986,120]
[354408553,1740475437180,-500.0,0.0006986,120]
[354408554,1740475437210,-500.0,0.0006986,120]
[354408555,1740475437240,-528.37286133,0.0006986,120]
[354408556,1740475437271,-500.0,0.0006986,120]
[354408557,1740475437300,-504.72208563,0.0006986,120]
[354408558,1740475437327,-648.21518709,0.0006986,120]
[354408559,1740475437358,-582.62,0.0006986,3]
[354408560,1740475437388,-500.0,0.0006986,120]
[354408561,1740475437416,-500.0,0.0006986,120]
[354408562,1740475437446,-500.0,0.0006986,120]
[354408563,1740475437474,-500.0,0.0006986,120]
[354408564,1740475437500,-502.28225715,0.0006986,120]
[354408565,1740475437528,-503.77978048,0.0006986,120]
[354408566,1740475437555,-500.0,0.0006986,120]
[354408567,1740475437581,-500.0,0.0006986,120]
[354408568,1740475437607,-500.0,0.00069861,120]
[354408569,1740475437632,-631.55,0.00069861,120]
[354408570,1740475437658,-3181.88980055,0.000699,17]
[354408571,1740475437686,-1455.94083484,0.00069989,6]
[354408572,1740475437712,-1819.92604355,0.0006999,6]
[354408573,1740475437738,-500.0,0.00069995,120]
[354408574,1740475437764,-511.89918106,0.00069995,120]
[354408575,1740475437793,-1846.87,0.00069995,120]
[354408576,1740475437820,-500.0,0.00069995,120]
[354408577,1740475437927,-500.0,0.00069995,120]
[354408578,1740475437980,-108.34830921,0.00069995,120]
[354408579,1740475438073,-500.0,0.00069173,120]
[354408580,1740475438100,-500.0,0.00069447,120]
[354408581,1740475438128,-501.10617869,0.00069586,120]
[354408582,1740475438154,-500.0,0.00069721,120]
[354408583,1740475438183,-1155.25169079,0.00069995,120]
[354408584,1740475438210,-500.0,0.00069995,120]
[354408585,1740475438237,-500.0,0.00069995,120]
[354408586,1740475438269,-500.0,0.00069999,120]
[354408587,1740475438297,-500.0,0.00069999,2]
[354408588,1740475438325,-500.0,0.00069999,120]
[354408589,1740475438352,-285.02540247,0.00069999,120]
[354408590,1740475438378,-500.0,0.00069999,120]
[354408591,1740475438404,-500.0,0.00069999,31]
[354408592,1740475438433,-1452.89939572,0.00069999,120]
[354408593,1740475438460,-500.0,0.00069999,120]
[354408594,1740475438487,-500.0,0.00069999,120]
[354408595,1740475438514,-1452.89939572,0.00069999,120]
[354408596,1740475438540,-500.0,0.00069999,120]
[354408597,1740475438567,-598.14150196,0.00069999,2]
[354408598,1740475438594,-414.59341504,0.00069999,120]
[354408599,1740475438623,-500.0,0.00069999,120]
[354408600,1740475438649,-1452.89939572,0.00069999,120]
[354408601,1740475438676,-270.92540898,0.00069999,120]
[354408602,1740475438700,-353.52973595,0.00069999,31]
[354408603,1740475438727,-500.0,0.00069999,120]
[354408604,1740475438754,-500.0,0.00069999,120]
[354408605,1740475438781,-1452.89939572,0.00069999,120]
[354408606,1740475438809,-500.0,0.00069999,120]
[354408607,1740475438835,-500.0,0.00069999,120]
[354408608,1740475438859,-1452.89939572,0.00069999,120]
[354408609,1740475438886,-500.0,0.00069999,120]
[354408610,1740475438912,-500.0,0.00069999,120]
[354408611,1740475438940,-1452.89939572,0.00069999,120]
[354408612,1740475438968,-500.0,0.00069999,120]
[354408613,1740475438995,-1452.89939572,0.00069999,120]
[354408614,1740475439024,-500.0,0.00069999,120]
[354408615,1740475439053,-251.13089608,0.00069999,120]
[354408616,1740475439119,-248.86910392,0.00069999,120]
[354408617,1740475439147,-1452.89939572,0.00069999,120]
[354408618,1740475439177,-500.0,0.00069999,120]
[354408619,1740475439205,-500.0,0.00069999,120]
[354408620,1740475439232,-1452.89939572,0.00069999,120]
[354408621,1740475439262,-500.0,0.00069999,120]
[354408622,1740475439292,-1452.89939572,0.00069999,120]
[354408623,1740475439321,-500.0,0.00069999,120]
[354408624,1740475439348,-1452.89939572,0.00069999,120]
[354408625,1740475439379,-500.0,0.00069999,120]
[354408626,1740475439406,-1452.89939572,0.00069999,120]
[354408627,1740475439438,-500.0,0.00069999,120]
[354408628,1740475439464,-1452.89939572,0.00069999,120]
[354408629,1740475439492,-500.0,0.00069999,120]
[354408630,1740475439519,-500.0,0.00069999,120]
[354408631,1740475439546,-1452.89939572,0.00069999,120]
[354408632,1740475439575,-500.0,0.00069999,120]
[354408633,1740475439602,-1452.89939572,0.00069999,120]
[354408634,1740475439628,-500.0,0.00069999,120]
[354408635,1740475439652,-1452.89939572,0.00069999,120]
[354408636,1740475439680,-1452.89939572,0.00069999,120]
[354408637,1740475439707,-500.0,0.00069999,120]
[354408638,1740475439734,-500.0,0.00069999,120]
[354408639,1740475439759,-1452.89939572,0.00069999,120]
[354408640,1740475439786,-500.0,0.00069999,120]